bitfinex/quotes_SOLUSD_20250611
["timestamp","ask_amount","ask_price","bid_price","bid_amount"]
[1749645460413,59.9,165.74,165.71,26.88469186]
[1749645460905,65.93362469,165.74,165.7,1.40621836]
[1749645461209,65.93362469,165.74,165.71,1.40621836]
[1749645461399,59.9,165.74,165.71,1.40621836]
[1749645461710,65.93355877,165.74,165.71,26.88469186]
[1749645462504,25.4784735,165.73,165.67,1.40621836]
[1749645462810,51.4784735,165.71,165.64,1.40621836]
[1749645463107,25.4784735,165.69,165.65,1.40621836]
[1749645463407,25.4784735,165.68,165.65,1.40621836]
[1749645463645,6.03355877,165.74,165.65,1.40621836]
[1749645463819,48.98138587,165.77,165.69,1.40621836]
[1749645463820,26.0,165.73,165.69,1.40621836]
[1749645464133,31.51274818,165.72,165.66,1.40621836]
[1749645464311,25.4784735,165.71,165.66,1.40621836]
[1749645464504,32.0339657,165.73,165.68,1.40621836]
[1749645464712,25.4784735,165.72,165.68,1.40621836]
[1749645464912,59.3784735,165.71,165.66,1.40621836]
[1749645465223,33.9,165.71,165.64,25.4784735]
[1749645465421,33.9,165.71,165.63,1.40621836]
[1749645465422,25.4784735,165.68,165.63,25.4784735]
[1749645465612,26.0,165.7,165.63,25.4784735]
[1749645465815,51.4784735,165.7,165.66,1.40621836]
[1749645466209,6.03536725,165.69,165.66,1.40621836]
[1749645466414,31.51384075,165.69,165.64,25.4784735]
[1749645466618,33.9,165.68,165.65,1.40621836]
[1749645467001,33.9,165.68,165.63,1.40621836]
[1749645467002,59.3784735,165.68,165.63,1.40621836]
[1749645467207,59.3784735,165.68,165.65,1.40621836]
[1749645467634,33.9,165.68,165.65,26.88469186]
[1749645467847,6.03209072,165.78,165.67,1.40621836]
[1749645468006,26.0,165.71,165.69,1.40621836]
[1749645468603,26.0,165.71,165.53,6.04107312]
[1749645468604,59.9,165.7,165.57,10.0]
[1749645468810,26.0,165.55,165.39,8.4019]
[1749645469016,25.4784735,165.58,165.46,3.14991545]
[1749645469017,26.0,165.53,165.46,3.14991545]
[1749645469230,59.9,165.52,165.46,3.14991545]
[1749645469440,33.9,165.51,165.39,8.4019]
[1749645469735,25.4784735,165.49,165.44,25.4784735]
[1749645469939,33.9,165.51,165.43,25.4784735]
[1749645470108,33.9,165.5,165.44,25.4784735]
[1749645470438,59.3784735,165.5,165.44,25.4784735]
[1749645470731,33.9,165.5,165.4,18.64964886]
[1749645471053,33.9,165.5,165.45,25.4784735]
[1749645471242,25.4784735,165.53,165.47,25.4784735]
[1749645471423,33.92,165.52,165.41,0.14216157]
[1749645471619,33.92,165.53,165.44,0.14216157]
[1749645471844,33.92,165.53,165.5,25.4784735]
[1749645472145,33.92,165.56,165.52,25.4784735]
[1749645472455,25.4784735,165.59,165.52,25.4784735]
[1749645472456,33.92,165.59,165.52,0.14216157]
[1749645472633,2.1414,165.64,165.56,25.4784735]
[1749645472823,25.4784735,165.62,165.56,25.4784735]
[1749645473026,33.92,165.61,165.56,25.4784735]
[1749645473225,17.33259649,165.67,165.58,25.4784735]
[1749645473440,9.1298,165.68,165.62,25.4784735]
[1749645473636,25.4784735,165.69,165.63,25.4784735]
[1749645473829,33.92,165.68,165.58,0.14216157]
[1749645474135,25.4784735,165.65,165.6,25.4784735]
[1749645474337,59.3984735,165.67,165.55,0.14216157]
[1749645474633,59.3984735,165.67,165.54,44.64964886]
[1749645474634,59.3984735,165.67,165.61,25.4784735]
[1749645474831,59.3984735,165.67,165.59,0.14216157]
[1749645475050,33.92,165.67,165.59,0.14216157]
[1749645475230,33.92,165.67,165.63,25.4784735]
[1749645475625,33.92,165.67,165.64,25.4784735]
[1749645476033,25.4784735,165.72,165.66,25.4784735]
[1749645476230,33.92,165.71,165.66,25.4784735]
[1749645476421,33.92,165.71,165.58,18.64964886]
[1749645476422,25.4784735,165.73,165.68,25.4784735]
[1749645476626,33.92,165.72,165.68,25.4784735]
[1749645476844,33.92,165.72,165.64,0.14216157]
[1749645477346,33.92,165.72,165.58,28.64964886]
[1749645477546,33.92,165.72,165.67,25.4784735]
[1749645477938,59.3984735,165.72,165.64,0.14216157]
[1749645478232,25.4784735,165.68,165.59,0.14216157]
[1749645478454,33.92,165.68,165.58,26.0]
[1749645478749,33.92,165.68,165.64,25.4784735]
[1749645479127,33.92,165.68,165.57,0.14216157]
[1749645479633,33.92,165.68,165.65,25.4784735]
[1749645480343,25.4784735,165.67,165.62,25.4784735]
[1749645480533,59.3984735,165.68,165.63,25.4784735]
[1749645480733,18.64964886,165.76,165.63,0.14216157]
[1749645481051,25.4784735,165.66,165.55,26.0]
[1749645481358,33.9,165.66,165.61,25.4784735]
[1749645481539,59.3784735,165.66,165.61,25.4784735]
[1749645481852,51.4784735,165.63,165.58,25.4784735]
[1749645482055,26.0,165.63,165.6,25.4784735]
[1749645482232,25.4784735,165.65,165.53,18.64964886]
[1749645482433,25.4784735,165.65,165.59,25.4784735]
[1749645482837,25.4784735,165.64,165.58,25.4784735]
[1749645483035,59.9,165.66,165.6,25.4784735]
[1749645483259,25.4784735,165.65,165.6,25.4784735]
[1749645483459,33.9,165.66,165.56,0.14216157]
[1749645483650,25.4784735,165.64,165.56,0.14216157]
[1749645483956,33.9,165.66,165.62,25.4784735]
[1749645484137,33.9,165.66,165.64,25.4784735]
[1749645484337,25.4784735,165.68,165.57,0.14216157]
[1749645484542,25.4784735,165.66,165.6,25.4784735]
[1749645484859,25.4784735,165.64,165.58,25.4784735]
[1749645485038,33.9,165.66,165.53,44.64964886]
[1749645485238,25.4784735,165.62,165.57,25.4784735]
[1749645485761,25.4784735,165.63,165.55,0.14216157]
[1749645485930,25.4784735,165.65,165.6,25.2777535]
[1749645486130,59.3784735,165.66,165.61,25.4784735]
[1749645486529,6.03510695,165.7,165.62,25.4784735]
[1749645486862,59.9,165.69,165.58,0.14216157]
[1749645487061,33.9,165.68,165.61,25.4784735]
[1749645487360,25.4784735,165.67,165.62,25.4784735]
[1749645487564,25.4784735,165.67,165.58,0.14216157]
[1749645487742,25.4784735,165.67,165.62,25.4784735]
[1749645487939,25.4784735,165.67,165.58,0.14216157]
[1749645488139,25.4784735,165.65,165.58,0.14216157]
[1749645488438,25.4784735,165.65,165.6,25.4784735]
[1749645488745,26.0,165.67,165.61,25.4784735]
[1749645488963,51.4784735,165.67,165.61,25.4784735]
[1749645489459,25.4784735,165.66,165.56,18.79181043]
[1749645489665,25.4784735,165.65,165.6,25.4784735]
[1749645489969,25.4784735,165.65,165.59,25.4784735]
[1749645490264,25.4784735,165.63,165.57,25.4784735]
[1749645490636,32.03685754,165.65,165.52,53.43854886]
[1749645490637,25.4784735,165.62,165.52,34.7889]
[1749645490843,25.4784735,165.63,165.57,25.4784735]
[1749645491238,25.4784735,165.63,165.53,18.64964886]
[1749645491239,59.3584735,165.64,165.59,25.4784735]
[1749645491435,59.3584735,165.64,165.56,0.14216157]
[1749645491436,25.4784735,165.63,165.58,25.4784735]
[1749645492565,33.88,165.64,165.59,25.4784735]
[1749645492768,51.4784735,165.65,165.6,25.4784735]
[1749645492935,25.4784735,165.61,165.49,18.64964886]
[1749645493141,25.4784735,165.59,165.53,25.4784735]
[1749645493549,33.88,165.61,165.54,25.4784735]
[1749645493867,33.88,165.61,165.44,18.7672]
[1749645493868,25.4784735,165.57,165.51,25.4784735]
[1749645494168,26.0,165.6,165.5,25.4784735]
[1749645494349,25.4784735,165.56,165.51,25.4784735]
[1749645494880,25.4784735,165.56,165.5,25.4784735]
[1749645495066,25.4784735,165.56,165.45,18.64964886]
[1749645495268,25.4784735,165.55,165.5,25.4784735]
[1749645495473,59.88,165.57,165.5,25.4784735]
[1749645495768,25.4784735,165.55,165.5,25.4784735]
[1749645496468,88.0,165.56,165.51,25.4784735]
[1749645496865,113.4784735,165.56,165.51,25.4784735]
[1749645499370,146.7,165.66,165.58,25.4784735]
[1749645499545,152.73657883,165.66,165.59,25.4784735]
[1749645499739,26.0,165.63,165.57,25.4784735]
[1749645499967,26.0,165.63,165.59,25.4784735]
[1749645500161,26.0,165.63,165.55,0.14216157]
[1749645500162,26.0,165.63,165.6,25.4784735]
[1749645500356,25.4784735,165.64,165.55,0.14216157]
[1749645500554,51.4784735,165.65,165.6,25.4784735]
[1749645500764,25.4784735,165.65,165.6,25.4784735]
[1749645500959,172.1784735,165.66,165.6,25.4784735]
[1749645501364,146.7,165.66,165.6,25.4784735]
[1749645501553,172.1784735,165.66,165.61,25.4784735]
[1749645501753,146.7,165.66,165.55,0.14216157]
[1749645502163,25.4784735,165.65,165.59,25.4784735]
[1749645502361,25.4784735,165.63,165.58,25.4784735]
[1749645502877,33.88,165.65,165.59,25.4784735]
[1749645503079,25.4784735,165.64,165.55,0.14216157]
[1749645503253,59.3584735,165.65,165.59,25.4784735]
[1749645503453,59.3584735,165.65,165.6,25.4784735]
[1749645503784,172.1784735,165.66,165.61,25.4784735]
[1749645503966,146.7,165.66,165.62,25.4784735]
[1749645504352,146.7,165.66,165.55,0.14216157]
[1749645504558,146.7,165.66,165.59,0.14216157]
[1749645505084,88.0,165.67,165.64,25.4784735]
[1749645505264,59.3384735,165.7,165.65,25.4784735]
[1749645505452,26.0,165.7,165.65,25.4784735]
[1749645505659,146.7,165.72,165.66,25.4784735]
[1749645505965,146.7,165.72,165.67,25.4784735]
[1749645505966,172.1784735,165.72,165.67,25.4784735]
[1749645506352,146.7,165.72,165.68,25.4784735]
[1749645506684,8.7053,165.74,165.7,25.4784735]
[1749645506882,25.4784735,165.75,165.7,25.4784735]
[1749645507265,88.0,165.74,165.73,25.4784735]
[1749645507588,88.0,165.73,165.66,26.0]
[1749645507761,88.0,165.73,165.68,26.0]
[1749645507958,88.0,165.73,165.63,12.1129]
[1749645508270,146.7,165.77,165.67,26.0]
[1749645508581,146.7,165.77,165.68,18.79181043]
[1749645508790,146.7,165.77,165.74,25.4784735]
[1749645508957,146.7,165.77,165.68,18.79181043]
[1749645509153,146.7,165.77,165.73,25.4784735]
[1749645509491,146.7,165.77,165.74,25.4784735]
[1749645510061,146.7,165.77,165.68,44.79181043]
[1749645510062,146.7,165.77,165.75,25.4784735]
[1749645510277,88.0,165.79,165.75,25.4784735]
[1749645510580,88.0,165.79,165.74,25.4784735]
[1749645511084,25.4784735,165.78,165.68,44.79181043]
[1749645511283,25.4784735,165.75,165.7,25.4784735]
[1749645511612,25.4784735,165.75,165.64,18.64964886]
[1749645511613,33.84,165.75,165.64,18.64964886]
[1749645511765,33.84,165.75,165.69,25.4784735]
[1749645512078,25.4784735,165.73,165.65,0.14216157]
[1749645512290,33.84,165.75,165.69,25.4784735]
[1749645512493,33.84,165.75,165.64,18.64964886]
[1749645512494,59.3184735,165.75,165.7,25.4784735]
[1749645512798,59.3184735,165.75,165.64,18.79181043]
[1749645513089,25.4784735,165.67,165.61,10.81031331]
[1749645513380,25.4784735,165.67,165.62,25.4784735]
[1749645513690,25.4784735,165.67,165.61,10.81031331]
[1749645513866,25.4784735,165.66,165.61,10.81031331]
[1749645514185,25.4784735,165.64,165.59,25.4784735]
[1749645514577,25.4784735,165.63,165.58,25.4784735]
[1749645514961,25.4784735,165.6,165.55,25.4784735]
[1749645516093,25.4784735,165.58,165.53,25.4784735]
[1749645516583,25.4784735,165.59,165.54,25.4784735]
[1749645517287,33.82,165.62,165.55,25.4784735]
[1749645517590,25.4784735,165.6,165.55,25.4784735]
[1749645517791,25.4784735,165.61,165.56,25.4784735]
[1749645518086,33.82,165.62,165.56,25.4784735]
[1749645518387,25.4784735,165.58,165.53,25.4784735]
[1749645518595,25.4784735,165.59,165.54,25.4784735]
[1749645518883,33.82,165.62,165.54,25.4784735]
[1749645518884,25.4784735,165.6,165.54,25.4784735]
[1749645519069,33.82,165.62,165.54,25.4784735]
[1749645519272,25.4784735,165.59,165.51,18.79181043]
[1749645519459,25.4784735,165.59,165.54,25.4784735]
[1749645519657,25.4784735,165.59,165.51,18.79181043]
[1749645519861,25.4784735,165.59,165.54,25.4784735]
[1749645520063,25.4784735,165.57,165.49,18.64964886]
[1749645520382,25.4784735,165.56,165.51,25.4784735]
[1749645520575,33.8,165.59,165.49,0.14216157]
[1749645520576,25.4784735,165.57,165.52,25.4784735]
[1749645520769,25.4784735,165.58,165.52,25.4784735]
[1749645521581,25.4784735,165.57,165.52,25.4784735]
[1749645521782,33.8,165.59,165.54,25.4784735]
[1749645521983,88.0,165.58,165.54,25.4784735]
[1749645522676,113.4784735,165.58,165.49,18.79181043]
[1749645522872,25.4784735,165.57,165.52,25.4784735]
[1749645523071,88.0,165.58,165.51,25.4784735]
[1749645523403,113.4784735,165.58,165.53,25.4784735]
[1749645523580,88.0,165.57,165.53,25.4784735]
[1749645523773,88.0,165.57,165.47,0.14216157]
[1749645523774,25.4784735,165.56,165.47,0.14216157]
[1749645523965,25.4784735,165.55,165.5,25.4784735]
[1749645524718,88.0,165.57,165.5,25.4784735]
[1749645525202,25.4784735,165.56,165.47,0.14216157]
[1749645525389,25.4784735,165.55,165.5,25.4784735]
[1749645525693,25.4784735,165.56,165.5,25.4784735]
[1749645526277,88.0,165.57,165.47,0.14216157]
[1749645526468,113.4784735,165.57,165.47,0.14216157]
[1749645526792,25.4784735,165.56,165.47,0.14216157]
[1749645527098,113.4784735,165.57,165.47,0.14216157]
[1749645527421,113.4784735,165.57,165.51,25.4784735]
[1749645527768,88.0,165.57,165.54,25.4784735]
[1749645528092,88.0,165.57,165.55,25.4784735]
[1749645528285,8.5469,165.61,165.55,25.4784735]
[1749645528286,25.4784735,165.6,165.55,25.4784735]
[1749645528888,8.5469,165.61,165.54,25.4784735]
[1749645529087,25.4784735,165.59,165.5,0.14216157]
[1749645529287,25.4784735,165.59,165.54,25.4784735]
[1749645529996,8.5469,165.61,165.5,0.14216157]
[1749645530188,25.4784735,165.58,165.53,25.4784735]
[1749645530768,25.4784735,165.57,165.52,25.4784735]
[1749645530969,25.4784735,165.57,165.48,26.0]
[1749645531196,25.4784735,165.56,165.5,25.4784735]
[1749645531383,25.4784735,165.56,165.51,25.4784735]
[1749645532274,26.0,165.58,165.51,25.4784735]
[1749645532480,26.0,165.58,165.47,0.14216157]
[1749645532481,25.4784735,165.56,165.47,18.79181043]
[1749645532680,25.4784735,165.56,165.51,25.4784735]
[1749645532898,25.4784735,165.57,165.51,25.4784735]
[1749645533306,26.0,165.58,165.52,25.4784735]
[1749645533497,26.0,165.58,165.43,18.64964886]
[1749645533498,59.76,165.58,165.43,18.64964886]
[1749645533697,25.4784735,165.55,165.5,25.4784735]
[1749645534408,25.4784735,165.56,165.5,25.4784735]
[1749645535212,25.4784735,165.56,165.45,0.14216157]
[1749645535418,25.4784735,165.55,165.5,25.4784735]
[1749645535591,25.4784735,165.55,165.49,25.4784735]
[1749645536286,25.4784735,165.54,165.45,18.79181043]
[1749645536614,25.4784735,165.54,165.49,25.4784735]
[1749645536911,25.4784735,165.54,165.45,18.79181043]
[1749645537089,88.0,165.57,165.51,25.4784735]
[1749645537289,113.4784735,165.57,165.45,18.64964886]
[1749645537505,113.4784735,165.57,165.51,25.4784735]
[1749645537890,88.0,165.57,165.51,25.4784735]
[1749645538104,88.0,165.57,165.52,25.4784735]
[1749645538416,113.4784735,165.57,165.52,25.4784735]
[1749645539201,88.0,165.57,165.52,17.11355871]
[1749645539431,88.0,165.57,165.54,17.11355871]
[1749645539946,88.0,165.57,165.49,0.14216157]
[1749645540091,17.11355871,165.56,165.51,17.11355871]
[1749645540419,17.11355871,165.58,165.52,17.11355871]
[1749645540810,17.11355871,165.58,165.48,0.14216157]
[1749645541000,17.11355871,165.55,165.48,0.14216157]
[1749645541395,88.0,165.54,165.46,26.0]
[1749645541696,88.0,165.53,165.51,17.11355871]
[1749645542102,88.0,165.53,165.52,17.11355871]
[1749645542502,88.0,165.53,165.52,17.25572028]
[1749645543105,88.0,165.53,165.48,0.14216157]
[1749645543304,88.0,165.53,165.52,17.11355871]
[1749645543617,88.0,165.53,165.52,17.25572028]
[1749645545220,88.0,165.57,165.52,17.25572028]
[1749645545518,17.11355871,165.55,165.42,18.9513]
[1749645545728,17.11355871,165.54,165.49,17.11355871]
[1749645546019,17.11355871,165.52,165.46,17.11355871]
[1749645546213,26.0,165.56,165.41,2.1577]
[1749645546214,17.11355871,165.5,165.44,17.11355871]
[1749645546600,17.11355871,165.51,165.45,17.11355871]
[1749645546910,17.11355871,165.49,165.37,8.6665]
[1749645547115,17.11355871,165.48,165.43,17.11355871]
[1749645547303,17.11355871,165.48,165.42,17.11355871]
[1749645547617,26.0,165.47,165.36,2.187]
[1749645547922,26.0,165.49,165.38,17.11355871]
[1749645547923,88.0,165.48,165.38,17.11355871]
[1749645548227,88.0,165.48,165.34,26.0]
[1749645548397,17.11355871,165.43,165.38,17.11355871]
[1749645548596,17.11355871,165.44,165.39,17.11355871]
[1749645548814,17.11355871,165.43,165.35,18.64964886]
[1749645549015,17.11355871,165.44,165.39,17.11355871]
[1749645549211,8.5549,165.55,165.43,17.11355871]
[1749645549399,17.11355871,165.51,165.43,0.14216157]
[1749645549595,17.11355871,165.48,165.4,18.64964886]
[1749645549899,17.11355871,165.47,165.42,17.11355871]
[1749645550104,17.11355871,165.44,165.39,17.11355871]
[1749645550323,17.11355871,165.44,165.38,0.14216157]
[1749645550324,17.11355871,165.43,165.4,5.9765305]
[1749645550531,17.11355871,165.44,165.41,5.97747247]
[1749645550735,26.0,165.49,165.42,23.09092191]
[1749645550907,17.11355871,165.48,165.43,23.09058295]
[1749645551105,234.7,165.54,165.46,17.11355871]
[1749645551444,8.5549,165.55,165.47,21.57986122]
[1749645551633,8.5549,165.55,165.48,5.97596354]
[1749645551801,17.11355871,165.54,165.49,17.11355871]
[1749645552127,8.5549,165.55,165.5,4.46740568]
[1749645552128,34.5549,165.55,165.5,4.46740568]
[1749645552338,17.11355871,165.51,165.46,17.11355871]
[1749645552628,17.11355871,165.52,165.47,5.97736075]
[1749645552833,17.11355871,165.51,165.48,5.97736104]
[1749645553006,17.11355871,165.51,165.46,17.11355871]
[1749645553007,17.11355871,165.51,165.49,1.50959323]
[1749645553198,17.11355871,165.51,165.46,17.11355871]
[1749645553409,17.11355871,165.5,165.47,5.98035942]
[1749645553726,17.11355871,165.5,165.48,5.98035942]
[1749645553902,34.5549,165.55,165.46,17.11355871]
[1749645553903,17.11355871,165.51,165.46,17.11355871]
[1749645554319,17.11355871,165.52,165.47,17.11355871]
[1749645554528,17.11355871,165.51,165.48,4.47488446]
[1749645554739,34.5549,165.55,165.48,4.47488446]
[1749645555042,17.11355871,165.51,165.49,4.47488446]
[1749645555332,17.11355871,165.52,165.5,5.98449139]
[1749645555540,26.0,165.52,165.51,5.99036668]
[1749645555839,43.11355871,165.52,165.51,5.99044903]
[1749645556040,43.11355871,165.52,165.51,1.50968989]
[1749645556210,26.0,165.52,165.51,5.99080066]
[1749645556410,43.11355871,165.52,165.51,5.99080066]
[1749645556634,43.11355871,165.52,165.51,5.99828545]
[1749645556836,26.0,165.52,165.51,5.99828545]
[1749645557145,43.11355871,165.52,165.51,5.99828545]
[1749645557443,101.46477354,165.52,165.51,1.50989056]
[1749645557665,101.46477354,165.52,165.51,6.00551643]
[1749645557831,101.46477354,165.52,165.51,1.50989056]
[1749645558039,101.46477354,165.52,165.51,6.00551643]
[1749645558248,101.46477354,165.52,165.51,6.00947721]
[1749645558434,101.46477354,165.52,165.51,6.0095855]
[1749645558650,101.46477354,165.52,165.43,17.11355871]
[1749645558856,146.7,165.51,165.44,1.50995886]
[1749645559031,17.11355871,165.46,165.45,1.51010856]
[1749645559234,17.11355871,165.46,165.37,0.14216157]
[1749645559477,18.64964886,165.47,165.38,18.62375859]
[1749645559658,17.11355871,165.44,165.39,18.62378142]
[1749645559847,17.11355871,165.45,165.4,18.62382096]
[1749645560036,17.11355871,165.46,165.41,1.51026225]
[1749645560231,65.7030668,165.48,165.42,1.5102769]
[1749645560454,17.11355871,165.43,165.37,17.11355871]
[1749645560731,17.11355871,165.41,165.38,1.51027618]
[1749645561047,44.64964886,165.47,165.39,1.51040114]
[1749645561048,17.11355871,165.42,165.39,1.51040114]
[1749645561274,17.11355871,165.42,165.4,1.51035993]
[1749645561557,17.11355871,165.42,165.41,1.51037763]
[1749645562433,17.11355871,165.42,165.41,1.51038609]
[1749645562670,26.0,165.43,165.41,1.51038538]
[1749645562961,17.11355871,165.42,165.36,17.11355871]
[1749645563140,17.11355871,165.42,165.37,1.51038527]
[1749645563336,17.11355871,165.42,165.37,17.11355871]
[1749645563554,26.0,165.43,165.37,17.11355871]
[1749645563743,17.11355871,165.42,165.33,44.79181043]
[1749645564064,17.11355871,165.42,165.37,17.11355871]
[1749645565181,17.11355871,165.42,165.33,44.79181043]
[1749645565482,17.11355871,165.39,165.34,17.11355871]
[1749645565653,17.11355871,165.4,165.35,17.11355871]
[1749645565854,26.0,165.43,165.33,26.0]
[1749645565855,17.11355871,165.41,165.36,17.11355871]
[1749645566185,17.11355871,165.4,165.35,17.11355871]
[1749645566770,17.11355871,165.41,165.36,17.11355871]
[1749645567081,26.0,165.43,165.38,17.11355871]
[1749645567249,43.11355871,165.43,165.38,17.11355871]
[1749645567454,43.11355871,165.43,165.35,0.14216157]
[1749645567868,43.11355871,165.43,165.38,17.11355871]
[1749645568063,26.0,165.43,165.35,0.14216157]
[1749645568358,17.11355871,165.42,165.37,17.11355871]
[1749645568660,26.0,165.43,165.37,17.11355871]
[1749645568966,17.11355871,165.39,165.35,17.11355871]
[1749645569172,17.11355871,165.39,165.33,26.0]
[1749645569173,12.58216389,165.39,165.33,26.0]
[1749645569485,17.11355871,165.37,165.32,17.11355871]
[1749645570079,17.11355871,165.38,165.33,17.11355871]
[1749645571888,234.7,165.42,165.35,17.11355871]
[1749645572061,251.81355871,165.42,165.37,17.11355871]
[1749645572261,88.0,165.42,165.35,0.14216157]
[1749645573072,17.11355871,165.41,165.36,17.11355871]
[1749645574294,17.11355871,165.41,165.35,0.14216157]
[1749645574593,17.11355871,165.38,165.31,26.0]
[1749645574987,17.11355871,165.38,165.33,17.11355871]
[1749645575372,17.11355871,165.37,165.32,17.11355871]
[1749645575574,17.11355871,165.36,165.31,17.11355871]
[1749645575887,17.11355871,165.34,165.3,10.85561895]
[1749645576598,17.11355871,165.33,165.3,10.85561895]
[1749645577083,17.11355871,165.34,165.3,10.85561895]
[1749645577670,26.0,165.35,165.3,10.85561895]
[1749645577894,17.11355871,165.34,165.3,10.85561895]
[1749645578191,88.0,165.34,165.3,10.85561895]
[1749645578394,88.0,165.34,165.31,17.11355871]
[1749645579380,88.0,165.34,165.3,27.96917766]
[1749645580518,114.0,165.34,165.2,2.1715]
[1749645580719,114.0,165.34,165.3,17.11355871]
[1749645580917,50.67355871,165.36,165.31,17.11355871]
[1749645581798,33.56,165.36,165.31,17.11355871]
[1749645581997,17.11355871,165.35,165.3,17.11355871]
[1749645582207,17.11355871,165.33,165.26,0.14216157]
[1749645582395,17.11355871,165.33,165.28,17.11355871]
[1749645582597,17.11355871,165.33,165.26,0.14216157]
[1749645582796,33.56,165.36,165.29,17.11355871]
[1749645582797,17.11355871,165.34,165.29,17.11355871]
[1749645583100,17.11355871,165.35,165.3,17.11355871]
[1749645583301,17.11355871,165.34,165.26,0.14216157]
[1749645583507,33.56,165.36,165.29,17.11355871]
[1749645583704,17.11355871,165.33,165.29,17.11355871]
[1749645584025,17.11355871,165.34,165.29,17.11355871]
[1749645584227,17.11355871,165.32,165.26,0.14216157]
[1749645584531,26.0,165.33,165.23,44.79181043]
[1749645584831,146.7,165.37,165.32,17.11355871]
[1749645584994,146.7,165.37,165.3,26.14216157]
[1749645585199,163.81355871,165.37,165.32,17.11355871]
[1749645585507,88.0,165.36,165.32,17.11355871]
[1749645585821,88.0,165.36,165.29,0.14216157]
[1749645585822,105.11355871,165.36,165.31,17.11355871]
[1749645586124,105.11355871,165.36,165.24,0.14216157]
[1749645586125,94.04751225,165.36,165.24,0.14216157]
[1749645586295,17.11355871,165.33,165.28,17.11355871]
[1749645586896,17.11355871,165.33,165.26,26.0]
[1749645587096,17.11355871,165.33,165.19,16.66361667]
[1749645587097,25.90685871,165.31,165.19,16.66361667]
[1749645587324,8.7933,165.31,165.2,18.64964886]
[1749645587525,17.11355871,165.28,165.23,17.11355871]
[1749645588028,146.7,165.32,165.25,0.14216157]
[1749645588220,146.7,165.32,165.27,17.11355871]
[1749645588542,17.11355871,165.3,165.23,26.0]
[1749645588834,17.11355871,165.31,165.26,17.11355871]
[1749645589031,146.7,165.32,165.27,17.11355871]
[1749645589202,146.7,165.32,165.28,17.11355871]
[1749645589821,146.7,165.32,165.24,0.14216157]
[1749645590000,146.7,165.32,165.29,17.11355871]
[1749645590431,146.7,165.32,165.26,0.14216157]
[1749645590607,146.7,165.32,165.29,17.11355871]
[1749645590813,96.6522,165.36,165.31,17.11355871]
[1749645591016,88.0,165.36,165.31,17.11355871]
[1749645591224,17.11355871,165.36,165.31,17.11355871]
[1749645591420,131.11355871,165.37,165.31,17.11355871]
[1749645591610,43.11355871,165.37,165.31,17.11355871]
[1749645591938,17.11355871,165.37,165.29,26.0]
[1749645592131,17.11355871,165.37,165.32,17.11355871]
[1749645592314,17.11355871,165.36,165.29,26.0]
[1749645592510,17.11355871,165.36,165.31,17.11355871]
[1749645593009,17.11355871,165.36,165.29,26.0]
[1749645593010,17.11355871,165.37,165.29,26.0]
[1749645593208,17.11355871,165.37,165.32,17.11355871]
[1749645593423,11.4358,165.4,165.32,17.11355871]
[1749645593609,11.4358,165.4,165.35,17.11355871]
[1749645593825,9.1555,165.4,165.36,17.11355871]
[1749645594011,26.26905871,165.4,165.34,17.11355871]
[1749645594423,9.1555,165.4,165.35,17.11355871]
[1749645594606,26.26905871,165.4,165.35,17.11355871]
[1749645594821,26.26905871,165.4,165.32,0.14216157]
[1749645595044,26.26905871,165.4,165.35,17.11355871]
[1749645595424,9.1555,165.4,165.36,17.11355871]
[1749645595933,9.1555,165.4,165.35,17.11355871]
[1749645596340,9.1555,165.4,165.36,17.11355871]
[1749645596536,43.11355871,165.41,165.36,17.11355871]
[1749645596733,26.0,165.41,165.36,17.11355871]
[1749645597055,26.0,165.4,165.35,17.11355871]
[1749645597353,131.11355871,165.4,165.35,17.11355871]
[1749645597863,43.11355871,165.36,165.25,18.64964886]
[1749645598157,26.0,165.36,165.32,17.11355871]
[1749645598530,234.7,165.39,165.33,17.11355871]
[1749645598724,251.81355871,165.39,165.34,17.11355871]
[1749645598927,234.7,165.39,165.34,17.11355871]
[1749645599135,17.11355871,165.38,165.27,44.79181043]
[1749645599357,17.11355871,165.38,165.33,17.11355871]
[1749645599721,234.7,165.39,165.35,17.11355871]
[1749645599926,234.7,165.39,165.34,17.11355871]
[1749645600142,234.7,165.39,165.35,17.11355871]
[1749645600359,234.7,165.39,165.34,17.11355871]
[1749645600533,234.7,165.39,165.35,17.11355871]
[1749645600739,234.7,165.39,165.3,0.14216157]
[1749645600740,88.0,165.38,165.37,17.11355871]
[1749645600926,146.7,165.39,165.37,17.11355871]